fUSD/lending_fUSD_20240719
["ID","MTS","AMOUNT","RATE_DAILY","PERIOD"]
[332657285,1721406646386,-500.0,0.00033287,14]
[332657287,1721406646394,-627.43,0.00033287,14]
[332657289,1721406646404,-500.0,0.00033287,14]
[332657291,1721406646413,-500.0,0.00033287,7]
[332657293,1721406646422,-768.33,0.00033287,2]
[332657295,1721406646431,-175.77,0.00033289,120]
[332657297,1721406646441,-596.34499928,0.00033327,2]
[332657299,1721406646450,-1273.89,0.00033349,2]
[332657301,1721406646458,-500.0,0.00033369,42]
[332657303,1721406646467,-5671.47022285,0.00033402,5]
[332657305,1721406646476,-744.57050209,0.00033402,19]
[332657307,1721406646485,-5671.47022285,0.0003341,5]
[332657309,1721406646494,-500.0,0.00033412,14]
[332657311,1721406646503,-500.0,0.00033412,14]
[332657312,1721406646512,-500.0,0.00033412,14]
[332657314,1721406646521,-263.94,0.00033412,14]
[332657316,1721406646530,-500.0,0.00033412,14]
[332657318,1721406646539,-524.71,0.00033412,14]
[332657320,1721406646548,-500.0,0.00033412,14]
[332657322,1721406646557,-215.13,0.00033412,14]
[332657324,1721406646566,-500.0,0.00033412,14]
[332657326,1721406646575,-500.0,0.00033412,14]
[332657328,1721406646584,-405.5,0.00033412,14]
[332657330,1721406646593,-500.0,0.00033412,14]
[332657332,1721406646603,-500.0,0.00033412,14]
[332657334,1721406646615,-500.0,0.00033412,14]
[332657336,1721406646624,-500.0,0.00033412,14]
[332657337,1721406646635,-5671.47022285,0.00033414,5]
[332657339,1721406646645,-500.0,0.00033422,14]
[332657341,1721406646654,-154.96,0.00033422,14]
[332657343,1721406646664,-159.4,0.00033422,14]
[332657345,1721406646673,-500.0,0.00033422,14]
[332657347,1721406646682,-178.13,0.00033422,14]
[332657349,1721406646692,-374.24,0.00033422,14]
[332657351,1721406646702,-500.0,0.00033422,14]
[332657353,1721406646712,-547.67,0.00033422,14]
[332657354,1721406646723,-500.0,0.00033424,14]
[332657355,1721406646732,-500.0,0.00033424,14]
[332657356,1721406646743,-272.36,0.00033424,14]
[332657357,1721406646755,-200.0,0.00033424,7]
[332657358,1721406646764,-608.07,0.00033424,30]
[332657359,1721406646775,-500.0,0.00033424,14]
[332657360,1721406646786,-618.5,0.00033424,14]
[332657362,1721406646796,-1106.36,0.00033424,14]
[332657363,1721406646805,-500.0,0.00033424,14]
[332657365,1721406646815,-615.61,0.00033424,14]
[332657367,1721406646825,-500.0,0.00033424,14]
[332657369,1721406646835,-500.0,0.00033424,14]
[332657371,1721406646846,-627.43,0.00033424,14]
[332657372,1721406646856,-500.0,0.00033424,14]
[332657373,1721406646867,-1500.0,0.00033424,16]
[332657374,1721406646876,-500.0,0.00033424,7]
[332657376,1721406646885,-768.33,0.00033424,2]
[332657378,1721406646894,-5671.47022285,0.00033531,5]
[332657379,1721406646904,-500.0,0.00033549,14]
[332657380,1721406646913,-500.0,0.00033549,14]
[332657381,1721406646923,-500.0,0.00033549,14]
[332657383,1721406646932,-500.0,0.00033549,14]
[332657385,1721406646941,-500.0,0.00033549,14]
[332657387,1721406646951,-361.13,0.00033549,14]
[332657389,1721406646960,-197.84,0.00033549,14]
[332657391,1721406646970,-500.0,0.00033549,14]
[332657393,1721406646979,-191.71,0.00033549,14]
[332657395,1721406646988,-500.0,0.00033549,14]
[332657397,1721406646998,-500.0,0.00033549,14]
[332657399,1721406647007,-5671.47022285,0.00033551,5]
[332657400,1721406647016,-500.0,0.00033559,14]
[332657402,1721406647025,-500.0,0.00033559,14]
[332657404,1721406647035,-182.97,0.00033559,14]
[332657406,1721406647045,-547.67,0.00033559,14]
[332657408,1721406647055,-900.0,0.00033561,10]
[332657410,1721406647065,-500.0,0.00033561,14]
[332657412,1721406647074,-200.0,0.00033561,7]
[332657414,1721406647083,-608.07,0.00033561,30]
[332657416,1721406647092,-527.94,0.00033561,14]
[332657418,1721406647101,-618.5,0.00033561,14]
[332657420,1721406647112,-1106.36,0.00033561,14]
[332657422,1721406647123,-500.0,0.00033561,14]
[332657424,1721406647133,-615.61,0.00033561,14]
[332657426,1721406647142,-500.0,0.00033561,14]
[332657427,1721406647150,-500.0,0.00033561,14]
[332657429,1721406647159,-627.43,0.00033561,14]
[332657431,1721406647168,-168.54337088,0.00033561,14]
[332657433,1721406647177,-500.0,0.00033561,7]
[332657435,1721406647186,-768.33,0.00033561,2]
[332657437,1721406647195,-5671.47022285,0.0003359,5]
[332657439,1721406647204,-163.36125358,0.00033596,7]
[332657441,1721406647213,-600.0,0.000336,19]
[332657443,1721406647222,-5006.17233,0.000336,30]
[332657444,1721406647231,-307.46,0.00033645,2]
[332657446,1721406647240,-5671.47022285,0.00033666,5]
[332657448,1721406647249,-596.34499928,0.00033668,2]
[332657450,1721406647258,-5697.46319162,0.00033676,5]
[332657452,1721406647267,-5671.47022285,0.00033676,5]
[332657454,1721406647276,-5697.46319162,0.00033686,5]
[332657456,1721406647285,-500.0,0.00033686,14]
[332657458,1721406647294,-500.0,0.00033686,14]
[332657460,1721406647303,-500.0,0.00033686,14]
[332657462,1721406647312,-500.0,0.00033686,14]
[332657464,1721406647322,-500.0,0.00033686,14]
[332657466,1721406647331,-500.0,0.00033686,14]
[332657468,1721406647341,-559.7,0.00033686,14]
[332657470,1721406647350,-500.0,0.00033686,14]
[332657472,1721406647360,-500.0,0.00033696,14]
[332657473,1721406647369,-500.0,0.00033696,14]
[332657475,1721406647379,-547.67,0.00033696,14]
[332657477,1721406647388,-500.0,0.00033698,14]
[332657480,1721406647400,-200.0,0.00033698,7]
[332657482,1721406647411,-608.07,0.00033698,30]
[332657484,1721406647420,-618.5,0.00033698,14]
[332657486,1721406647430,-1106.36,0.00033698,14]
[332657488,1721406647440,-500.0,0.00033698,14]
[332657490,1721406647449,-615.61,0.00033698,14]
[332657492,1721406647458,-500.0,0.00033698,14]
[332657493,1721406647467,-500.0,0.00033698,14]
[332657495,1721406647477,-627.43,0.00033698,14]
[332657497,1721406647487,-1500.0,0.00033698,17]
[332657500,1721406647498,-325.09577921,0.00033698,7]
[332657502,1721406647507,-768.33,0.00033698,2]
[332657504,1721406647518,-482.77171221,0.0003377,2]
[332657506,1721406647528,-499.52315,0.0003377,2]
[332657508,1721406647539,-5671.47022285,0.0003377,5]
[332657510,1721406647549,-5697.46319162,0.0003377,5]
[332657512,1721406647559,-154.68067757,0.0003379,7]
[332657514,1721406647568,-11342.9404457,0.0003379,5]
[332657516,1721406647578,-5697.46319162,0.0003379,5]
[332657517,1721406647587,-13936.87704398,0.000338,14]
[332657519,1721406647597,-5697.46319162,0.00033803,5]
[332657521,1721406647608,-5671.47022285,0.00033813,5]
[332657524,1721406647622,-5697.46319162,0.00033823,5]
[332657525,1721406647636,-503.15821042,0.00033823,14]
[332657527,1721406647645,-500.0,0.00033823,14]
[332657529,1721406647655,-500.0,0.00033823,14]
[332657532,1721406647666,-500.0,0.00033823,14]
[332657533,1721406647676,-500.0,0.00033823,14]
[332657536,1721406647687,-500.0,0.00033823,14]
[332657538,1721406647698,-500.0,0.00033823,14]
[332657540,1721406647708,-366.03,0.00033827,2]
[332657542,1721406647718,-500.0,0.00033833,14]
[332657544,1721406647728,-500.0,0.00033833,14]
[332657546,1721406647738,-547.67,0.00033833,14]
[332657548,1721406647749,-500.0,0.00033835,14]
[332657550,1721406647758,-200.0,0.00033835,7]
[332657552,1721406647768,-608.07,0.00033835,30]
[332657554,1721406647778,-618.5,0.00033835,14]
[332657556,1721406647787,-1106.36,0.00033835,14]
[332657558,1721406647796,-500.0,0.00033835,14]
[332657559,1721406647806,-615.61,0.00033835,14]
[332657561,1721406647815,-500.0,0.00033835,14]
[332657563,1721406647825,-500.0,0.00033835,14]
[332657565,1721406647834,-627.43,0.00033835,14]
[332657567,1721406647844,-768.33,0.00033835,2]
[332657569,1721406647855,-5671.47022285,0.00033894,5]
[332657571,1721406647866,-5697.46319162,0.00033914,5]
[332657573,1721406647875,-529.52,0.00033924,2]
[332657575,1721406647884,-529.52,0.00033924,2]
[332657577,1721406647894,-529.52,0.00033924,2]
[332657579,1721406647904,-529.52,0.00033924,2]
[332657581,1721406647914,-529.52,0.00033924,2]
[332657583,1721406647924,-529.52,0.00033924,2]
[332657585,1721406647935,-529.52,0.00033924,2]
[332657587,1721406647947,-529.52,0.00033924,2]
[332657589,1721406647957,-5671.47022285,0.0003393,5]
[332657592,1721406647968,-5697.46319162,0.00033942,5]
[332657594,1721406647978,-5671.47022285,0.0003395,5]
[332657596,1721406647987,-500.0,0.0003396,14]
[332657598,1721406647998,-500.0,0.0003396,14]
[332657600,1721406648008,-500.0,0.0003396,14]
[332657602,1721406648018,-500.0,0.0003396,14]
[332657604,1721406648027,-500.0,0.0003396,14]
[332657606,1721406648036,-354.51,0.0003396,14]
[332657608,1721406648046,-5697.46319162,0.0003396,5]
[332657610,1721406648055,-500.0,0.0003397,14]
[332657612,1721406648065,-500.0,0.0003397,14]
[332657614,1721406648074,-547.67,0.0003397,14]
[332657616,1721406648084,-500.0,0.00033972,14]
[332657618,1721406648093,-200.0,0.00033972,7]
[332657620,1721406648104,-608.07,0.00033972,30]
[332657622,1721406648119,-618.5,0.00033972,14]
[332657624,1721406648129,-1106.36,0.00033972,14]
[332657626,1721406648139,-500.0,0.00033972,14]
[332657628,1721406648148,-615.61,0.00033972,14]
[332657629,1721406648157,-500.0,0.00033972,14]
[332657631,1721406648167,-500.0,0.00033972,14]
[332657633,1721406648176,-627.43,0.00033972,14]
[332657635,1721406648185,-1500.0,0.00033972,18]
[332657636,1721406648194,-768.33,0.00033972,2]
[332657638,1721406648204,-284.32,0.00033986,120]
[332657640,1721406648213,-207.61030166,0.00033999,6]
[332657642,1721406648223,-350.0,0.00034,4]
[332657644,1721406648232,-1000.0,0.00034,2]
[332657646,1721406648241,-177.13138484,0.00034009,2]
[332657648,1721406648251,-596.34499928,0.0003401,2]
[332657649,1721406648261,-5671.47022285,0.0003402,5]
[332657651,1721406648271,-153.0,0.00034029,2]
[332657653,1721406648280,-153.0,0.00034029,2]
[332657655,1721406648290,-153.0,0.0003403,2]
[332657657,1721406648300,-153.0,0.0003403,2]
[332657659,1721406648310,-153.0,0.0003403,2]
[332657661,1721406648319,-153.0,0.0003403,2]
[332657663,1721406648328,-153.0,0.00034031,2]
[332657664,1721406648337,-153.0,0.00034031,2]
[332657665,1721406648346,-5697.46319162,0.00034034,5]
[332657666,1721406648356,-1014.52,0.00034035,2]
[332657667,1721406648367,-11342.9404457,0.0003406,5]
[332657668,1721406648376,-11394.9263832,0.0003406,5]
[332657669,1721406648386,-5671.47022285,0.00034077,5]
[332657670,1721406648396,-5697.46319162,0.00034087,5]
[332657671,1721406648406,-11342.9404457,0.00034089,5]
[332657672,1721406648417,-11394.9263832,0.00034089,5]
[332657673,1721406648427,-22789.8527665,0.00034089,5]
[332657674,1721406648436,-48927.19336489,0.00034089,11]
[332657675,1721406648447,-45579.705533,0.00034089,5]
[332657676,1721406648458,-5697.46319162,0.0003409,5]
[332657677,1721406648467,-152.73887486,0.00034096,2]
[332657678,1721406648477,-500.0,0.00034097,14]
[332657679,1721406648487,-500.0,0.00034097,14]
[332657680,1721406648498,-530.15,0.00034097,14]
[332657681,1721406648507,-500.0,0.00034097,14]
[332657682,1721406648518,-337.86,0.00034097,14]
[332657683,1721406648529,-62672.0951078,0.00034099,5]
[332657684,1721406648541,-837.32488748,0.00034099,2]
[332657685,1721406648551,-2000.0,0.000341,12]
[332657686,1721406648563,-2000.0,0.000341,12]
[332657687,1721406648574,-191.0,0.000341,19]
[332657688,1721406648585,-500.0,0.00034107,14]
[332657689,1721406648597,-174.93,0.00034107,14]
[332657690,1721406648608,-547.67,0.00034107,14]
[332657691,1721406648630,-149.49460674,0.00034109,14]
[332657692,1721406648642,-1525.3,0.00034109,14]
[332657693,1721406648655,-613.40900516,0.00034109,14]
[332657694,1721406648667,-500.0,0.00034109,14]
[332657695,1721406648678,-500.0,0.00034109,14]
[332657696,1721406648690,-573.94,0.00034109,14]
[332657697,1721406648704,-500.0,0.00034109,14]
[332657698,1721406648716,-1371.28,0.00034109,14]
[332657699,1721406648729,-3469.57,0.00034109,14]
[332657700,1721406648741,-631.52,0.00034109,14]
[332657701,1721406648752,-588.43,0.00034109,14]
[332657702,1721406648763,-2176.17,0.00034109,14]
[332657703,1721406648774,-1955.31,0.00034109,14]
[332657704,1721406648785,-500.0,0.00034109,14]
[332657705,1721406648796,-2427.02,0.00034109,14]
[332657706,1721406648807,-500.0,0.00034109,14]
[332657707,1721406648818,-500.0,0.00034109,14]
[332657708,1721406648829,-1828.59,0.00034109,14]
[332657709,1721406648840,-5486.25,0.00034109,14]
[332657710,1721406648851,-1223.8,0.00034109,14]
[332657711,1721406648868,-467.03831653,0.00034109,14]
[332657712,1721406648878,-157.86746682,0.00034109,14]
[332657713,1721406648893,-2146.48,0.00034109,14]
[332657714,1721406648903,-3526.03,0.00034109,14]
[332657715,1721406648913,-764.16,0.00034109,14]
[332657716,1721406648924,-4860.92,0.00034109,14]
[332657717,1721406648933,-500.0,0.00034109,14]
[332657718,1721406648943,-911.04,0.00034109,14]
[332657719,1721406648953,-500.0,0.00034109,14]
[332657720,1721406648963,-500.0,0.00034109,14]
[332657721,1721406648973,-1186.38,0.00034109,14]
[332657722,1721406648982,-803.43,0.00034109,14]
[332657723,1721406648992,-1434.17,0.00034109,14]
[332657724,1721406649002,-2377.08,0.00034109,14]
[332657725,1721406649012,-1324.17,0.00034109,14]
[332657727,1721406649022,-579.72,0.00034109,14]
[332657729,1721406649032,-1063.45,0.00034109,14]
[332657731,1721406649041,-997.28,0.00034109,14]
[332657732,1721406649051,-500.0,0.00034109,14]
[332657734,1721406649061,-1722.45,0.00034109,14]
[332657736,1721406649071,-500.0,0.00034109,14]
[332657738,1721406649081,-1747.58,0.00034109,14]
[332657740,1721406649091,-691.87,0.00034109,14]
[332657742,1721406649103,-2778.31,0.00034109,14]
[332657745,1721406649115,-764.08,0.00034109,14]
[332657766,1721406649341,-731.94,0.00034109,14]
[332657768,1721406649351,-2370.14,0.00034109,14]
[332657770,1721406649364,-746.56,0.00034109,14]
[332657772,1721406649375,-2176.52,0.00034109,14]
[332657774,1721406649386,-500.0,0.00034109,14]
[332657776,1721406649397,-843.15,0.00034109,14]
[332657778,1721406649407,-946.47,0.00034109,14]
[332657780,1721406649417,-2612.42,0.00034109,14]
[332657782,1721406649427,-3433.1,0.00034109,14]
[332657784,1721406649439,-3257.38,0.00034109,14]
[332657786,1721406649449,-4807.83,0.00034109,14]
[332657788,1721406649460,-776.7,0.00034109,14]
[332657790,1721406649470,-6084.24,0.00034109,14]
[332657792,1721406649481,-500.0,0.00034109,14]
[332657793,1721406649491,-3104.0,0.00034109,14]
[332657794,1721406649501,-929.51,0.00034109,14]
[332657795,1721406649511,-1119.11,0.00034109,14]
[332657796,1721406649522,-591.57,0.00034109,14]
[332657797,1721406649533,-773.81,0.00034109,14]
[332657798,1721406649544,-886.94,0.00034109,14]
[332657799,1721406649555,-500.0,0.00034109,14]
[332657800,1721406649565,-834.14,0.00034109,14]
[332657801,1721406649576,-500.0,0.00034109,14]
[332657802,1721406649586,-520.14,0.00034109,14]
[332657804,1721406649596,-3729.59,0.00034109,14]
[332657806,1721406649607,-500.0,0.00034109,14]
[332657808,1721406649620,-564.41,0.00034109,14]
[332657810,1721406649634,-208.52821575,0.00034109,14]
[332657813,1721406649644,-2202.35,0.00034109,14]
[332657815,1721406649654,-506.8445449,0.00034109,14]
[332657816,1721406649664,-4444.81,0.00034109,14]
[332657818,1721406649675,-500.0,0.00034109,14]
[332657820,1721406649686,-6544.05,0.00034109,14]
[332657822,1721406649699,-12975.5,0.00034109,14]
[332657824,1721406649710,-1479.28,0.00034109,14]
[332657826,1721406649722,-500.0,0.00034109,14]
[332657828,1721406649735,-517.39,0.00034109,14]
[332657831,1721406649750,-7598.05,0.00034109,14]
[332657833,1721406649761,-500.0,0.00034109,14]
[332657835,1721406649772,-1223.02,0.00034109,14]
[332657837,1721406649783,-2618.85,0.00034109,14]
[332657839,1721406649796,-500.0,0.00034109,14]
[332657841,1721406649807,-500.0,0.00034109,14]
[332657843,1721406649818,-502.07585201,0.00034109,14]
[332657845,1721406649830,-5744.48,0.00034109,14]
[332657847,1721406649843,-1017.25,0.00034109,14]
[332657849,1721406649854,-597.01,0.00034109,14]
[332657851,1721406649869,-1155.3,0.00034109,14]
[332657853,1721406649880,-4429.22,0.00034109,14]
[332657855,1721406649891,-590.27,0.00034109,14]
[332657857,1721406649902,-783.69,0.00034109,14]
[332657859,1721406649917,-574.99660764,0.00034109,14]
[332657861,1721406649928,-3470.76,0.00034109,14]
[332657864,1721406649939,-500.0,0.00034109,14]
[332657866,1721406649950,-2242.37,0.00034109,14]
[332657868,1721406649960,-501.12,0.00034109,14]
[332657870,1721406649970,-500.0,0.00034109,14]
[332657872,1721406649980,-2671.8,0.00034109,14]
[332657874,1721406649991,-1458.44,0.00034109,14]
[332657876,1721406650001,-850.9,0.00034109,14]
[332657878,1721406650012,-3379.93,0.00034109,14]
[332657880,1721406650023,-782.77,0.00034109,14]
[332657882,1721406650032,-2276.75,0.00034109,14]
[332657884,1721406650042,-983.6,0.00034109,14]
[332657886,1721406650051,-2517.04,0.00034109,14]
[332657888,1721406650064,-7579.61,0.00034109,14]
[332657890,1721406650074,-1306.08,0.00034109,14]
[332657892,1721406650085,-528.52,0.00034109,14]
[332657894,1721406650094,-612.81,0.00034109,14]
[332657896,1721406650103,-2573.03,0.00034109,14]
[332657898,1721406650115,-1623.35,0.00034109,14]
[332657900,1721406650125,-662.31,0.00034109,14]
[332657902,1721406650135,-944.06,0.00034109,14]
[332657904,1721406650146,-4158.79,0.00034109,14]
[332657906,1721406650156,-500.0,0.00034109,14]
[332657908,1721406650165,-823.61,0.00034109,14]
[332657910,1721406650175,-2052.86,0.00034109,14]
[332657912,1721406650184,-4173.55,0.00034109,14]
[332657914,1721406650194,-500.0,0.00034109,14]
[332657915,1721406650204,-3312.59,0.00034109,14]
[332657916,1721406650214,-500.0,0.00034109,14]
[332657918,1721406650224,-2591.99,0.00034109,14]
[332657920,1721406650235,-500.0,0.00034109,14]
[332657922,1721406650246,-1110.3,0.00034109,14]
[332657924,1721406650256,-1670.33,0.00034109,14]
[332657926,1721406650267,-3295.96,0.00034109,14]
[332657928,1721406650277,-3203.29,0.00034109,14]
[332657930,1721406650286,-12713.43,0.00034109,14]
[332657932,1721406650296,-500.0,0.00034109,14]
[332657934,1721406650306,-9922.87,0.00034109,14]
[332657936,1721406650317,-12334.5,0.00034109,14]
[332657938,1721406650326,-1715.39,0.00034109,14]
[332657940,1721406650337,-1634.46,0.00034109,14]
[332657942,1721406650347,-2218.75,0.00034109,14]
[332657944,1721406650357,-2349.36,0.00034109,14]
[332657946,1721406650370,-579.83,0.00034109,14]
[332657948,1721406650380,-28938.05,0.00034109,14]
[332657950,1721406650392,-1842.31,0.00034109,14]
[332657952,1721406650402,-2574.56,0.00034109,14]
[332657954,1721406650412,-500.0,0.00034109,14]
[332657956,1721406650421,-6670.15,0.00034109,14]
[332657958,1721406650431,-9010.61,0.00034109,14]
[332657960,1721406650441,-951.45,0.00034109,14]
[332657962,1721406650451,-1645.9,0.00034109,14]
[332657964,1721406650461,-1951.67,0.00034109,14]
[332657966,1721406650471,-500.0,0.00034109,14]
[332657968,1721406650481,-1689.61,0.00034109,14]
[332657970,1721406650491,-714.02,0.00034109,14]
[332657973,1721406650502,-7708.62,0.00034109,14]
[332657975,1721406650511,-5729.14,0.00034109,14]
[332657977,1721406650521,-1322.64,0.00034109,14]
[332657979,1721406650531,-1063.5,0.00034109,14]
[332657981,1721406650540,-1362.93,0.00034109,14]
[332657983,1721406650550,-1299.48,0.00034109,14]
[332657985,1721406650559,-12312.14,0.00034109,14]
[332657986,1721406650569,-1762.71,0.00034109,14]
[332657988,1721406650579,-924.96,0.00034109,14]
[332657990,1721406650588,-7146.83,0.00034109,14]
[332657992,1721406650598,-500.0,0.00034109,14]
[332657994,1721406650608,-2889.83,0.00034109,14]
[332657996,1721406650621,-977.45,0.00034109,14]
[332657998,1721406650634,-500.0,0.00034109,14]
[332658001,1721406650644,-579.71,0.00034109,14]
[332658002,1721406650654,-4396.85,0.00034109,14]
[332658004,1721406650665,-7179.59,0.00034109,14]
[332658006,1721406650674,-502.88,0.00034109,14]
[332658008,1721406650684,-19689.3,0.00034109,14]
[332658010,1721406650695,-1149.54,0.00034109,14]
[332658012,1721406650706,-3000.95,0.00034109,14]
[332658014,1721406650715,-3150.65,0.00034109,14]
[332658016,1721406650725,-12544.8,0.00034109,14]
[332658018,1721406650736,-1659.47,0.00034109,14]
[332658020,1721406650746,-2369.19,0.00034109,14]
[332658021,1721406650756,-500.0,0.00034109,14]
[332658022,1721406650766,-871.86,0.00034109,14]
[332658023,1721406650776,-1257.98,0.00034109,14]
[332658024,1721406650785,-500.0,0.00034109,14]
[332658025,1721406650795,-500.0,0.00034109,14]
[332658026,1721406650805,-2554.25,0.00034109,14]
[332658027,1721406650815,-33865.98,0.00034109,14]
[332658028,1721406650825,-585.26,0.00034109,14]
[332658029,1721406650835,-16039.8,0.00034109,14]
[332658030,1721406650845,-684.81,0.00034109,14]
[332658031,1721406650854,-5448.92,0.00034109,14]
[332658032,1721406650867,-500.0,0.00034109,14]
[332658033,1721406650877,-7767.51,0.00034109,14]
[332658034,1721406650887,-4546.82,0.00034109,14]
[332658035,1721406650898,-1115.03,0.00034109,14]
[332658036,1721406650908,-2290.4,0.00034109,14]
[332658037,1721406650918,-15549.95,0.00034109,14]
[332658038,1721406650927,-626.73745512,0.00034109,14]
[332658039,1721406650937,-1610.24,0.00034109,14]
[332658040,1721406650947,-713.98,0.00034109,14]
[332658041,1721406650958,-846.65,0.00034109,14]
[332658042,1721406650967,-500.0,0.00034109,14]
[332658043,1721406650977,-2566.11,0.00034109,14]
[332658044,1721406650987,-748.23,0.00034109,14]
[332658045,1721406650997,-7374.06,0.00034109,14]
[332658046,1721406651007,-12833.28,0.00034109,14]
[332658047,1721406651016,-2320.73,0.00034109,14]
[332658048,1721406651026,-504.43,0.00034109,14]
[332658049,1721406651035,-1344.07,0.00034109,14]
[332658050,1721406651045,-17988.02,0.00034109,14]
[332658051,1721406651055,-6295.21,0.00034109,14]
[332658052,1721406651064,-505.85229899,0.00034109,14]
[332658054,1721406651074,-13689.07,0.00034109,14]
[332658056,1721406651084,-4970.78,0.00034109,14]
[332658058,1721406651093,-2116.95,0.00034109,14]
[332658060,1721406651103,-2624.95,0.00034109,14]
[332658062,1721406651112,-500.0,0.00034109,14]
[332658064,1721406651122,-2812.54,0.00034109,14]
[332658066,1721406651132,-959.15,0.00034109,14]
[332658068,1721406651142,-1958.01,0.00034109,14]
[332658070,1721406651152,-500.0,0.00034109,14]
[332658072,1721406651162,-3410.57,0.00034109,14]
[332658074,1721406651171,-543.11,0.00034109,14]
[332658076,1721406651181,-7256.02,0.00034109,14]
[332658078,1721406651191,-1843.94,0.00034109,14]
[332658080,1721406651201,-518.99,0.00034109,14]
[332658082,1721406651212,-9013.11,0.00034109,14]
[332658084,1721406651223,-500.0,0.00034109,14]
[332658086,1721406651234,-500.0,0.00034109,14]
[332658088,1721406651244,-2927.81,0.00034109,14]
[332658090,1721406651254,-7140.38,0.00034109,14]
[332658092,1721406651265,-3548.25,0.00034109,14]
[332658094,1721406651275,-3936.33,0.00034109,14]
[332658096,1721406651285,-7123.89,0.00034109,14]
[332658098,1721406651295,-500.0,0.00034109,14]
[332658100,1721406651305,-2418.71,0.00034109,14]
[332658102,1721406651315,-500.0,0.00034109,14]
[332658104,1721406651325,-5061.23,0.00034109,14]
[332658106,1721406651335,-720.78,0.00034109,14]
[332658108,1721406651344,-1099.27,0.00034109,14]
[332658110,1721406651354,-7161.68,0.00034109,14]
[332658112,1721406651365,-4343.92,0.00034109,14]
[332658114,1721406651375,-500.0,0.00034109,14]
[332658116,1721406651386,-1065.22,0.00034109,14]
[332658118,1721406651396,-5135.62,0.00034109,14]
[332658120,1721406651405,-16158.34,0.00034109,14]
[332658122,1721406651415,-500.0,0.00034109,14]
[332658124,1721406651425,-2158.0,0.00034109,14]
[332658126,1721406651435,-845.57,0.00034109,14]
[332658128,1721406651445,-500.0,0.00034109,14]
[332658130,1721406651456,-5083.59,0.00034109,14]
[332658132,1721406651465,-921.29,0.00034109,14]
[332658134,1721406651475,-9737.63,0.00034109,14]
[332658136,1721406651485,-2072.08,0.00034109,14]
[332658138,1721406651495,-500.0,0.00034109,14]
[332658140,1721406651505,-1561.89,0.00034109,14]
[332658142,1721406651514,-4838.92,0.00034109,14]
[332658144,1721406651524,-6611.96,0.00034109,14]
[332658146,1721406651534,-500.0,0.00034109,2]
[332658148,1721406651543,-500.0,0.00034109,14]
[332658150,1721406651553,-719.18,0.00034109,14]
[332658152,1721406651563,-500.0,0.00034109,14]
[332658154,1721406651573,-500.0,0.00034109,14]
[332658156,1721406651582,-500.0,0.00034109,14]
[332658158,1721406651591,-8105.6,0.00034109,14]
[332658160,1721406651601,-4351.25,0.00034109,14]
[332658162,1721406651611,-673.49,0.00034109,14]
[332658164,1721406651622,-1381.41,0.00034109,14]
[332658166,1721406651632,-1724.11,0.00034109,14]
[332658167,1721406651644,-2493.32,0.00034109,14]
[332658168,1721406651653,-4816.46,0.00034109,14]
[332658169,1721406651663,-3427.99,0.00034109,14]
[332658170,1721406651673,-809.11,0.00034109,14]
[332658171,1721406651682,-500.0,0.00034109,14]